fUSD/lending_fUSD_20260323
["ID","MTS","AMOUNT","RATE_DAILY","PERIOD"]
[408818635,1774297840497,-169.749337,0.000258,2]
[408818637,1774297840506,-169.749337,0.000258,2]
[408818639,1774297840515,-181.295673,0.000258,2]
[408818641,1774297840524,-181.295673,0.000258,2]
[408818643,1774297840533,-181.295673,0.000258,2]
[408818645,1774297840543,-181.295673,0.000258,2]
[408818648,1774297840552,-151.0,0.000258,2]
[408818650,1774297840561,-151.0,0.000258,2]
[408818652,1774297840570,-150.0,0.0002589,2]
[408818654,1774297840580,-12200.0,0.000259,9]
[408818656,1774297840590,-443.2,0.00026149,2]
[408818658,1774297840599,-3337.73037218,0.00026165,2]
[408818660,1774297840608,-5000.0,0.00026175,2]
[408818662,1774297840617,-509.0977,0.00026175,2]
[408818664,1774297840627,-177.77154666,0.000262,2]
[408818666,1774297840638,-7580.65928568,0.00026222,2]
[408818667,1774297840647,-4453.0,0.00026247,2]
[408818669,1774297840656,-7243.0,0.00026247,2]
[408818671,1774297840666,-190.91115318,0.00026265,2]
[408818674,1774297840675,-500.0,0.00026273,2]
[408818676,1774297840684,-500.0,0.00026273,2]
[408818678,1774297840694,-500.0,0.00026273,2]
[408818680,1774297840703,-469.54623197,0.00026273,2]
[408818682,1774297840712,-575.38877704,0.00026273,2]
[408818683,1774297840722,-190.14948,0.00026275,2]
[408818686,1774297840731,-200.109732,0.00026275,2]
[408818687,1774297840741,-200.109732,0.00026275,2]
[408818689,1774297840750,-200.109732,0.00026275,2]
[408818692,1774297840759,-200.109732,0.00026275,2]
[408818693,1774297840768,-5000.0,0.00026275,2]
[408818696,1774297840778,-3918.418818,0.00026275,2]
[408818697,1774297840787,-169.749337,0.00026275,2]
[408818700,1774297840797,-169.749337,0.00026275,2]
[408818702,1774297840806,-169.749337,0.00026275,2]
[408818704,1774297840815,-169.749337,0.00026275,2]
[408818705,1774297840824,-181.295673,0.00026275,2]
[408818707,1774297840833,-181.295673,0.00026275,2]
[408818709,1774297840842,-181.295673,0.00026275,2]
[408818711,1774297840851,-181.295673,0.00026275,2]
[408818713,1774297840860,-151.0,0.00026275,2]
[408818715,1774297840869,-166.007109,0.00026275,2]
[408818717,1774297840879,-105990.16262192,0.00026275,2]
[408818720,1774297840890,-711.515,0.00026275,2]
[408818722,1774297840901,-660.41391143,0.00026275,2]
[408818724,1774297840912,-493.65095226,0.00026275,2]
[408818727,1774297840927,-7797.00312763,0.00026275,2]
[408818732,1774297840967,-2000.0,0.00020943,2]
[408818734,1774297840977,-2997.63692589,0.00026275,2]
[408818815,1774297842979,-543.32810234,0.00026175,2]
[408818816,1774297842989,-271.06525814,0.00026275,2]
[408818817,1774297843000,-500.0,0.00026275,2]
[408818818,1774297843011,-3842.84368682,0.00026275,2]
[408818819,1774297843031,-5011.20033874,0.00026275,2]
[408818823,1774297845934,-274.9071,0.00026275,2]
[408818824,1774297845946,-2928.4638173,0.00026275,2]
[408818825,1774297845990,-491.34281987,0.00026275,2]
[408818826,1774297846100,-8377.73227878,0.00026275,2]
[408818834,1774298954152,-1568.0,0.000144,2]
[408818835,1774298954173,-600.0,0.00014458,2]
[408818836,1774298954193,-151.0,0.00014634,2]
[408818837,1774298954214,-151.0,0.00014634,2]
[408818838,1774298954235,-151.0,0.00014634,2]
[408818839,1774298954254,-600.0,0.00014759,2]
[408818840,1774298954274,-600.0,0.00014759,2]
[408818841,1774298954294,-600.0,0.00014759,2]
[408818842,1774298954315,-1154.995376,0.00015121,2]
[408818843,1774299010171,2858.0,9.511e-05,2]
[408818850,1774299031832,-605.6100191,0.00011062,2]
[408818851,1774299031844,-805.47043148,0.00011062,2]
[408818852,1774299031888,-342.05954942,0.00011062,2]
[408818853,1774299031897,-1753.14,0.00011644,2]
[408818854,1774299031907,-1447.95045058,0.00012226,2]
[408818855,1774299031918,-305.18954942,0.00012226,2]
[408818856,1774299031927,-1753.14,0.00012808,2]
[408818857,1774299031936,-1753.14,0.00013391,2]
[408818858,1774299031945,-715.36713619,0.00013973,2]
[408818859,1774299031956,-1037.77286381,0.00013973,2]
[408818860,1774299031965,-513.0,0.00014,2]
[408818861,1774299031975,-600.0,0.00014317,2]
[408818862,1774299031984,-1753.14,0.00014555,2]
[408818863,1774299031993,-151.0,0.00014634,2]
[408818864,1774299032003,-600.0,0.00015113,2]
[408818865,1774299032012,-600.0,0.00015113,2]
[408818866,1774299032021,-1753.14,0.00015137,2]
[408818867,1774299032030,-600.0,0.000154,2]
[408818868,1774299032039,-1753.14,0.00015719,2]
[408818869,1774299032049,-600.0,0.0001584,2]
[408818870,1774299032058,-5000.0,0.0001584,2]
[408818872,1774299032068,-651.54591552,0.0001597,2]
[408818873,1774299032077,-300.0,0.00015998,2]
[408818874,1774299032087,-500.0,0.00015999,2]
[408818875,1774299032096,-500.0,0.00015999,2]
[408818876,1774299032105,-500.0,0.00015999,2]
[408818877,1774299032115,-500.0,0.00015999,2]
[408818878,1774299032124,-500.0,0.00015999,2]
[408818879,1774299032133,-500.0,0.00015999,2]
[408818880,1774299032142,-500.0,0.00015999,2]
[408818881,1774299032151,-500.0,0.00015999,2]
[408818882,1774299032161,-500.0,0.00015999,2]
[408818883,1774299032170,-500.0,0.00015999,2]
[408818884,1774299032179,-500.0,0.00015999,2]
[408818885,1774299032188,-500.0,0.00015999,2]
[408818886,1774299032197,-500.0,0.00015999,2]
[408818887,1774299032206,-500.0,0.00015999,2]
[408818888,1774299032215,-500.0,0.00015999,2]
[408818889,1774299032225,-500.0,0.00015999,2]
[408818890,1774299032234,-703.87,0.00015999,2]
[408818891,1774299032244,-502.46747394,0.00015999,2]
[408818892,1774299032253,-500.0,0.00015999,2]
[408818893,1774299032262,-703.87,0.00016273,2]
[408818894,1774299032272,-1753.14,0.00016302,2]
[408818895,1774299032281,-703.87,0.00016547,2]
[408818896,1774299032291,-1120.56698274,0.000168,2]
[408818897,1774299032302,-703.87,0.00016821,2]
[408818898,1774299032312,-1753.14,0.00016884,2]
[408818899,1774299032324,-2000.0,0.000169,2]
[408818900,1774299032335,-703.87,0.00017095,2]
[408818901,1774299032344,-283.0,0.00017118,2]
[408818902,1774299032354,-979.16666667,0.00017229,2]
[408818903,1774299032363,-703.87,0.00017369,2]
[408818904,1774299032372,-1753.14,0.00017466,2]
[408818905,1774299032381,-1861.07944964,0.00017578,2]
[408818906,1774299032391,-703.87,0.00017643,2]
[408818907,1774299032401,-703.87412812,0.00017917,2]
[408818908,1774299032410,-1753.14,0.00018048,2]
[408818909,1774299032420,-1753.14,0.0001863,2]
[408818910,1774299032429,-171.88,0.00018703,2]
[408818911,1774299032438,-500.0,0.00019,2]
[408818912,1774299032449,-1753.14,0.00019213,2]
[408818913,1774299032459,-500.0,0.00019311,2]
[408818914,1774299032469,-500.0,0.00019471,2]
[408818915,1774299032479,-500.0,0.00019471,2]
[408818916,1774299032490,-500.0,0.00019471,2]
[408818917,1774299032499,-1753.14,0.00019795,2]
[408818918,1774299032508,-1753.14,0.00020377,2]
[408818919,1774299032518,-2000.0,0.000208,2]
[408818920,1774299032527,-1753.14,0.00020959,2]
[408818921,1774299032537,-253.0,0.00021101,2]
[408818922,1774299032547,-5904.98652506,0.00021174,2]
[408818923,1774299032556,-1753.14,0.00021541,2]
[408818924,1774299032565,-500.0,0.00021644,2]
[408818925,1774299032574,-500.0,0.00021644,2]
[408818926,1774299032584,-500.0,0.00021644,2]
[408818927,1774299032594,-500.0,0.00021644,2]
[408818928,1774299032603,-500.0,0.00021644,2]
[408818929,1774299032612,-500.0,0.00021644,2]
[408818930,1774299032621,-500.0,0.00021644,2]
[408818931,1774299032631,-500.0,0.00021644,2]
[408818932,1774299032640,-500.0,0.00021644,2]
[408818933,1774299032650,-484.98041623,0.00021644,2]
[408818934,1774299032659,-607.81,0.00021701,2]
[408818935,1774299032668,-500.0,0.00021836,2]
[408818936,1774299032680,-611.86402323,0.00021903,2]
[408818937,1774299032690,-157.56214815,0.00021918,2]
[408818938,1774299032699,-157.56214815,0.00021918,2]
[408818940,1774299032708,-157.0,0.00022,2]
[408818941,1774299032718,-1753.14,0.00022123,2]
[408818942,1774299032727,-200.0,0.00022124,2]
[408818943,1774299032737,-200.0,0.00022157,2]
[408818944,1774299032747,-500.0,0.000222,2]
[408818945,1774299032757,-150.0,0.0002227,2]
[408818946,1774299032767,-503.01706708,0.00022287,2]
[408818947,1774299032776,-500.0,0.00022287,2]
[408818948,1774299032785,-500.0,0.00022287,2]
[408818949,1774299032795,-500.0,0.00022287,2]
[408818950,1774299032805,-500.0,0.00022287,2]
[408818951,1774299032813,-500.0,0.00022287,2]
[408818952,1774299032823,-500.0,0.00022287,2]
[408818953,1774299032832,-500.0,0.00022287,2]
[408818954,1774299032841,-500.0,0.00022287,2]
[408818955,1774299032851,-500.0,0.00022287,2]
[408818956,1774299032859,-500.0,0.00022287,2]
[408818957,1774299032869,-531.11132271,0.00022287,2]
[408818958,1774299032878,-500.0,0.00022287,2]
[408818959,1774299032888,-507.45233421,0.00022287,2]
[408818960,1774299032898,-500.0,0.00022287,2]
[408818961,1774299032908,-500.0,0.00022287,2]
[408818962,1774299032917,-500.0,0.00022287,2]
[408818963,1774299032926,-254.696003,0.00022471,10]
[408818964,1774299032935,-160.0,0.00022843,2]
[408818965,1774299032945,-165.0,0.00023,2]
[408818966,1774299032954,-160.56,0.00023493,2]
[408818967,1774299032963,-1000.0,0.00023747,2]
[408818968,1774299032978,-2458.79,0.00024322,2]
[408818969,1774299032987,-2000.0,0.000245,2]
[408818970,1774299032997,-323.59740141,0.00024561,2]
[408818971,1774299033006,-150.0,0.00024658,2]
[408818972,1774299033016,-491.51644773,0.0002511,2]
[408818973,1774299033025,-500.0,0.0002511,2]
[408818974,1774299033035,-500.0,0.0002511,2]
[408818975,1774299033044,-500.0,0.0002511,2]
[408818976,1774299033053,-500.0,0.0002511,2]
[408818977,1774299033545,-500.0,0.0002511,2]
[408818978,1774299033554,-500.0,0.0002511,2]
[408818979,1774299033564,-575.72205719,0.0002511,2]
[408818980,1774299033575,-500.0,0.0002511,2]
[408818981,1774299033585,-500.0,0.0002511,2]
[408818982,1774299033595,-500.0,0.0002511,2]
[408818983,1774299033608,-3400.0,0.000255,9]
[408818984,1774299033618,-6900.0,0.000256,9]
[408818985,1774299033628,-10400.0,0.000257,9]
[408818986,1774299033638,-509.0977,0.000258,2]
[408818987,1774299033648,-13900.0,0.000258,9]
[408818988,1774299033657,-5306.46150003,0.00025819,2]
[408818989,1774299033668,-20590.88984879,0.00025819,2]
[408818990,1774299033688,-1132.53506354,0.00025819,2]
[408818991,1774299033699,-15189.82713188,0.00025819,2]
[408818992,1774299033708,-328.51644358,0.0002582,2]
[408818993,1774299033719,-5000.0,0.0002582,2]
[408818994,1774299033729,-527.11640548,0.0002582,2]
[408818995,1774299033738,-1329.55352965,0.0002582,2]
[408818996,1774299033748,-272.62650177,0.00025873,2]
[408818997,1774299033757,-500.0,0.00025873,2]
[408818998,1774299033767,-152.68373601,0.00025873,2]
[408818999,1774299033776,-500.0,0.00025873,2]
[408819000,1774299033786,-150.0,0.0002589,2]
[408819001,1774299033796,-4453.0,0.0002589,2]
[408819002,1774299033805,-17400.0,0.000259,9]
[408819003,1774299033814,-12531.299931,0.000259,3]
[408819004,1774299033824,-500.0,0.00025909,2]
[408819005,1774299033834,-500.0,0.00025909,2]
[408819006,1774299033844,-23670.233203,0.0002591,3]
[408819007,1774299033853,-949.44207998,0.0002591,2]
[408819008,1774299033863,-949.44207998,0.0002591,2]
[408819009,1774299033872,-666.0,0.00025919,2]
[408819010,1774299033882,-500.0,0.00025919,2]
[408819011,1774299033891,-500.0,0.00025919,2]
[408819012,1774299033901,-500.0,0.00025919,2]
[408819013,1774299033911,-500.0,0.00025919,2]
[408819014,1774299033921,-500.0,0.00025919,2]
[408819015,1774299033931,-500.0,0.00025919,2]
[408819016,1774299033941,-500.0,0.00025919,2]
[408819017,1774299033951,-500.0,0.00025919,2]
[408819018,1774299033960,-500.0,0.00025919,2]
[408819019,1774299033970,-500.0,0.00025919,2]
[408819020,1774299033979,-500.0,0.00025919,2]
[408819021,1774299033989,-500.0,0.00025919,2]
[408819022,1774299033998,-619.28774558,0.00025919,2]
[408819023,1774299034008,-272.41417294,0.00025919,2]
[408819024,1774299034017,-500.0,0.00025919,2]
[408819025,1774299034026,-500.0,0.00025919,2]
[408819026,1774299034036,-500.0,0.00025919,2]
[408819027,1774299034046,-500.0,0.00025919,2]
[408819028,1774299034055,-500.0,0.00025919,2]
[408819029,1774299034065,-2500.0,0.00025919,2]
[408819030,1774299034074,-2500.0,0.00025919,2]
[408819031,1774299034084,-2500.0,0.00025919,2]
[408819032,1774299034093,-39258.38317905,0.0002592,2]
[408819033,1774299034106,-4090.24667252,0.0002592,2]
[408819034,1774299034117,-3134.32751764,0.0002592,2]
[408819048,1774299038336,-1331.50731239,0.0002592,2]
[408819050,1774299038351,-2498.96099122,0.0002592,2]
[408819052,1774299038362,-638.55537377,0.0002592,2]
[408819054,1774299038373,-12932.58695146,0.0002592,2]
[408819056,1774299038383,-3572.87009396,0.0002592,2]
[408819059,1774299038395,-2093.68970089,0.0002592,2]
[408819061,1774299038405,-113061.34717505,0.0002592,2]
[408819063,1774299038416,-2180.25108648,0.0002592,2]
[408819065,1774299038429,-10077.89671165,0.0002592,2]
[408819067,1774299038439,-12006.29957838,0.0002592,2]
[408819069,1774299038450,-39013.95857545,0.0002592,2]
[408819071,1774299038461,-10046.20702186,0.0002592,2]
[408819074,1774299038472,-564.0886184,0.0002592,2]
[408819088,1774299040327,-452.7734186,0.0002582,2]
[408819089,1774299040336,-2243498.82343983,0.0002592,2]
[408819090,1774299040346,-153.25761504,0.0002592,8]
[408819091,1774299040355,-1500000.0,0.0002592,2]
[408819092,1774299040365,-151.0,0.0002592,2]
[408819093,1774299040375,-151.0,0.0002592,2]
[408819094,1774299040384,-151.0,0.0002592,2]
[408819095,1774299040393,-151.0,0.0002592,2]
[408819096,1774299040403,-151.0,0.0002592,2]
[408819097,1774299040413,-151.0,0.0002592,2]
[408819098,1774299040422,-151.0,0.0002592,2]
[408819099,1774299040432,-151.0,0.0002592,2]
[408819100,1774299040441,-151.0,0.0002592,2]
[408819101,1774299040450,-224.640124,0.0002592,2]
[408819102,1774299040459,-151.0,0.0002592,2]
[408819103,1774299040468,-151.0,0.0002592,2]
[408819104,1774299040477,-244.220628,0.0002592,2]
[408819105,1774299040486,-178.06937,0.0002592,2]
[408819106,1774299040496,-178.06937,0.0002592,2]
[408819107,1774299040505,-178.06937,0.0002592,2]
[408819108,1774299040514,-244.220628,0.0002592,2]
[408819109,1774299040523,-178.06937,0.0002592,2]
[408819110,1774299040532,-178.06937,0.0002592,2]
[408819111,1774299040541,-244.220628,0.0002592,2]
[408819112,1774299040550,-178.06937,0.0002592,2]
[408819113,1774299040559,-244.220628,0.0002592,2]
[408819114,1774299040569,-178.06937,0.0002592,2]
[408819115,1774299040578,-178.06937,0.0002592,2]
[408819116,1774299040587,-151.0,0.0002592,2]
[408819117,1774299040596,-151.0,0.0002592,2]
[408819118,1774299040605,-151.0,0.0002592,2]
[408819119,1774299040614,-190.14948,0.0002592,2]
[408819120,1774299040623,-200.109732,0.0002592,2]
[408819121,1774299040633,-200.109732,0.0002592,2]
[408819122,1774299040642,-200.109732,0.0002592,2]
[408819123,1774299040651,-200.109732,0.0002592,2]
[408819124,1774299040660,-200.109732,0.0002592,2]
[408819125,1774299040670,-200.109732,0.0002592,2]
[408819126,1774299040681,-200.109732,0.0002592,2]
[408819127,1774299040690,-200.109732,0.0002592,2]
[408819128,1774299040699,-151.0,0.0002592,2]
[408819129,1774299040708,-154.011755,0.0002592,2]
[408819130,1774299040719,-161.26187,0.0002592,2]
[408819131,1774299040728,-161.26187,0.0002592,2]
[408819132,1774299040738,-161.26187,0.0002592,2]
[408819133,1774299040747,-161.26187,0.0002592,2]
[408819134,1774299040759,-151.0,0.0002592,2]
[408819135,1774299040768,-151.0,0.0002592,2]
[408819136,1774299040778,-151.0,0.0002592,2]
[408819137,1774299040788,-181.295673,0.0002592,2]
[408819138,1774299040797,-181.295673,0.0002592,2]
[408819139,1774299040807,-181.295673,0.0002592,2]
[408819140,1774299040816,-181.295673,0.0002592,2]
[408819141,1774299040826,-151.0,0.0002592,2]
[408819142,1774299040836,-151.0,0.0002592,2]
[408819143,1774299040846,-151.0,0.0002592,2]
[408819144,1774299040855,-543.35,0.0002592,2]
[408819145,1774299040865,-543.35,0.0002592,2]
[408819146,1774299040874,-543.35,0.0002592,2]
[408819147,1774299040883,-543.35,0.0002592,2]
[408819148,1774299040893,-543.35,0.0002592,2]
[408819149,1774299040902,-975.29,0.0002592,2]
[408819150,1774299040911,-487.0,0.0002592,2]
[408819151,1774299040920,-487.0,0.0002592,2]
[408819152,1774299040930,-487.0,0.0002592,2]
[408819153,1774299040939,-487.0,0.0002592,2]
[408819154,1774299040948,-487.0,0.0002592,2]
[408819155,1774299040957,-650.49,0.0002592,2]
[408819156,1774299040968,-500.0,0.00025973,2]
[408819157,1774299040977,-500.0,0.00025973,2]
[408819158,1774299040986,-357.55340388,0.00025973,2]
[408819159,1774299040995,-500.0,0.00025973,2]
[408819160,1774299041004,-500.0,0.00025973,2]
[408819161,1774299041012,-500.0,0.00025973,2]
[408819162,1774299041021,-500.0,0.00025973,2]
[408819163,1774299041030,-500.0,0.00025973,2]
[408819164,1774299041039,-500.0,0.00025973,2]
[408819165,1774299041049,-606.98804759,0.00025973,2]
[408819166,1774299041058,-500.0,0.00025973,2]
[408819167,1774299041072,-283.16380875,0.00025973,2]
[408819168,1774299041082,-500.0,0.00025973,2]
[408819169,1774299041093,-500.0,0.00025973,2]
[408819170,1774299041102,-500.0,0.00025973,2]
[408819171,1774299041111,-500.0,0.00025973,2]
[408819172,1774299041120,-500.0,0.00025973,2]
[408819173,1774299041130,-500.0,0.00025973,2]
[408819174,1774299041139,-500.0,0.00025973,2]
[408819175,1774299041149,-517.81577003,0.00025973,2]
[408819176,1774299041159,-162.44229143,0.00025973,2]
[408819177,1774299041169,-500.0,0.00025973,2]
[408819178,1774299041179,-412.99392051,0.00025973,2]
[408819179,1774299041188,-78755.33949938,0.0002602,2]
[408819180,1774299041198,-36913.25204421,0.00026106,2]
[408819181,1774299041208,-443.21,0.00026149,2]
[408819182,1774299041220,-443.2,0.00026149,2]
[408819183,1774299041230,-929.1205,0.00026174,2]
[408819184,1774299041239,-42414.4780877,0.00026189,2]
[408819185,1774299041250,-735.1365974,0.00026189,2]
[408819186,1774299041259,-151.0,0.00026189,2]
[408819187,1774299041269,-151.0,0.00026189,2]
[408819188,1774299041279,-151.0,0.00026189,2]
[408819189,1774299041288,-178.06937,0.00026189,2]
[408819190,1774299041298,-178.06937,0.00026189,2]
[408819191,1774299041307,-178.06937,0.00026189,2]
[408819192,1774299041316,-178.06937,0.00026189,2]
[408819193,1774299041325,-151.0,0.00026189,2]
[408819194,1774299041335,-200.109732,0.00026189,2]
[408819195,1774299041345,-200.109732,0.00026189,2]
[408819196,1774299041355,-200.109732,0.00026189,2]
[408819197,1774299041364,-200.109732,0.00026189,2]
[408819198,1774299041374,-5000.0,0.00026189,2]
[408819199,1774299041383,-3918.418818,0.00026189,2]
[408819200,1774299041393,-161.26187,0.00026189,2]
[408819201,1774299041403,-161.26187,0.00026189,2]
[408819202,1774299041415,-161.26187,0.00026189,2]
[408819203,1774299041424,-161.26187,0.00026189,2]
[408819204,1774299041433,-151.0,0.00026189,2]
[408819205,1774299041442,-151.0,0.00026189,2]
[408819206,1774299041451,-170.962888,0.00026189,2]
[408819207,1774299041460,-181.295673,0.00026189,2]
[408819208,1774299041470,-181.295673,0.00026189,2]
[408819209,1774299041479,-181.295673,0.00026189,2]
[408819210,1774299041489,-181.295673,0.00026189,2]
[408819211,1774299041499,-151.0,0.00026189,2]
[408819212,1774299041508,-166.007109,0.00026189,2]
[408819213,1774299041517,-5306.46149997,0.00026218,2]
[408819214,1774299041526,-151.0,0.00026218,2]
[408819215,1774299041536,-151.0,0.00026218,2]
[408819216,1774299041546,-151.0,0.00026218,2]
[408819217,1774299041555,-151.0,0.00026218,2]
[408819218,1774299041565,-244.220628,0.00026218,2]
[408819219,1774299041574,-244.220628,0.00026218,2]
[408819220,1774299041583,-244.220628,0.00026218,2]
[408819221,1774299041592,-244.220628,0.00026218,2]
[408819222,1774299041602,-500.0,0.00026264,2]
[408819223,1774299041614,-500.0,0.00026264,2]
[408819224,1774299041623,-500.0,0.00026264,2]
[408819225,1774299041632,-177.63188648,0.00026264,2]
[408819226,1774299041642,-500.0,0.00026264,2]
[408819227,1774299041651,-500.0,0.00026264,2]
[408819228,1774299041660,-500.0,0.00026264,2]
[408819229,1774299041671,-500.0,0.00026264,2]
[408819230,1774299041684,-500.0,0.00026264,2]
[408819231,1774299041694,-500.0,0.00026264,2]
[408819232,1774299041703,-500.0,0.00026264,2]
[408819233,1774299041713,-536.76730924,0.00026264,2]
[408819234,1774299041724,-151.0,0.00026264,2]
[408819235,1774299041734,-151.0,0.00026264,2]
[408819236,1774299041744,-151.0,0.00026264,2]
[408819237,1774299041753,-151.0,0.00026264,2]
[408819238,1774299041763,-151.0,0.00026265,2]
[408819239,1774299041772,-979.16666667,0.00026265,3]
[408819240,1774299041782,-400.0,0.0002627,2]
[408819241,1774299041791,-151.0,0.00026272,7]
[408819242,1774299041801,-150.0,0.00026273,2]
[408819243,1774299041810,-160.21004736,0.00026273,2]
[408819244,1774299041820,-260.0,0.00026274,7]
[408819245,1774299041829,-600.49565647,0.00026274,2]
[408819246,1774299041839,-500.0,0.00026274,2]
[408819247,1774299041848,-500.0,0.00026274,2]
[408819248,1774299041858,-500.0,0.00026274,2]
[408819249,1774299041867,-500.0,0.00026274,2]
[408819250,1774299041876,-500.0,0.00026274,2]
[408819251,1774299041885,-500.0,0.00026274,2]
[408819252,1774299041895,-500.0,0.00026274,2]
[408819253,1774299041904,-500.0,0.00026274,2]
[408819254,1774299041914,-500.0,0.00026274,2]
[408819255,1774299041923,-500.0,0.00026274,2]
[408819256,1774299041932,-500.0,0.00026274,2]
[408819257,1774299041942,-670.06,0.00026274,2]
[408819258,1774299041951,-670.06,0.00026274,2]
[408819259,1774299041961,-670.06,0.00026274,2]
[408819260,1774299041970,-670.06,0.00026274,2]
[408819261,1774299041980,-670.06,0.00026274,2]
[408819262,1774299041990,-500.0,0.00026274,2]
[408819263,1774299042010,-500.0,0.00026274,2]
[408819264,1774299042020,-265.99573624,0.00026274,2]
[408819265,1774299042029,-500.0,0.00026274,2]
[408819266,1774299042040,-500.0,0.00026274,2]
[408819267,1774299042050,-500.0,0.00026274,2]
[408819268,1774299042060,-500.0,0.00026274,2]
[408819269,1774299042070,-500.0,0.00026274,2]
[408819270,1774299042081,-500.0,0.00026274,2]
[408819271,1774299042091,-500.0,0.00026274,2]
[408819272,1774299042101,-500.0,0.00026274,2]
[408819273,1774299042111,-591.23745448,0.00026274,2]
[408819274,1774299042121,-500.0,0.00026274,2]
[408819275,1774299042131,-500.0,0.00026274,2]
[408819276,1774299042141,-410.66648104,0.00026274,2]
[408819277,1774299042150,-200.0,0.00026275,2]
[408819278,1774299042160,-1000.0,0.00026275,120]
[408819279,1774299042171,-1000.0,0.00026275,120]
[408819280,1774299042180,-174.937,0.00026275,120]
[408819281,1774299042191,-177.986,0.00026275,90]
[408819282,1774299042200,-1500.0,0.00026275,120]
[408819283,1774299042210,-1500.0,0.00026275,120]
[408819284,1774299042219,-1500.0,0.00026275,120]
[408819285,1774299042229,-942.037,0.00026275,120]
[408819286,1774299042239,-7857.32,0.000263,7]
[408819287,1774299042248,-175.68,0.000263,7]
[408819288,1774299042258,-160.11,0.000263,7]
[408819289,1774299042268,-2072.22,0.00026375,2]
[408819290,1774299042278,-36913.25204421,0.00026393,2]
[408819291,1774299042288,-1756.28,0.0002643,2]
[408819292,1774299042298,-300.0,0.00026586,2]
[408819293,1774299042307,-17044.89474762,0.00026615,2]
[408819294,1774299042317,-5306.46149997,0.00026616,2]
[408819295,1774299042327,-36913.25204421,0.0002668,2]
[408819296,1774299042337,-178.06937,0.0002668,2]
[408819297,1774299042352,-178.06937,0.0002668,2]
[408819298,1774299042362,-178.06937,0.0002668,2]
[408819299,1774299042373,-178.06937,0.0002668,2]
[408819300,1774299042383,-151.0,0.0002668,2]
[408819301,1774299042392,-200.109732,0.0002668,2]
[408819302,1774299042402,-200.109732,0.0002668,2]
[408819303,1774299042412,-200.109732,0.0002668,2]
[408819304,1774299042422,-200.109732,0.0002668,2]
[408819305,1774299042431,-161.26187,0.0002668,2]
[408819306,1774299042441,-161.26187,0.0002668,2]
[408819307,1774299042451,-161.26187,0.0002668,2]
[408819308,1774299042461,-161.26187,0.0002668,2]
[408819309,1774299042471,-151.0,0.0002668,2]
[408819310,1774299042481,-151.0,0.0002668,2]
[408819311,1774299042491,-181.295673,0.0002668,2]
[408819312,1774299042501,-181.295673,0.0002668,2]
[408819313,1774299042511,-181.295673,0.0002668,2]
[408819314,1774299042520,-181.295673,0.0002668,2]
[408819315,1774299042530,-151.0,0.0002668,2]
[408819316,1774299042542,-168.0,0.00026686,2]
[408819317,1774299042552,-1822.0,0.00026698,2]
[408819318,1774299042563,-227.0,0.00026819,2]
[408819319,1774299042575,-250.0,0.00026821,2]
[408819320,1774299042584,-227.0,0.00026828,2]
[408819321,1774299042595,-36913.25204421,0.00026967,2]
[408819322,1774299042606,-227.0,0.00026973,2]
[408819323,1774299042616,-800.0,0.00026986,120]
[408819324,1774299042626,-5306.46149997,0.00027015,2]